[Event "Kupreichik Memorial Open 2018"]
[Site "Minsk"]
[Date "2018.06.22"]
[Round "7"]
[White "Svjatocho, Andrej"]
[Black "Sihite, Chelsie Monica Igne"]
[Result "1-0"]
[ECO "C45"]
[WhiteElo "1979"]
[BlackElo "2236"]
[Annotator "NA"]
[PlyCount "103"]
[EventDate "2018.06.21"]
[EventCountry "BLR"]
[SourceTitle "playchess.com"]
[Source "ChessBase"]
[SourceQuality "1"]
[TimeControl "900+10"]

1. e4 {[%emt 0:00:00]} e5 {[%emt 0:00:01]} 2. Nf3 {[%emt 0:00:00]} Nc6 {[%emt 0:00:01]} 3. d4 {[%emt 0:00:00]} exd4 {[%emt 0:00:02]} 4. Nxd4 {[%emt 0:00:00]} Bc5 {[%emt 0:00:01]} 5. Nxc6 {[%emt 0:00:02]} Qf6 {[%emt 0:00:08]} 6. Qd2 {[%emt 0:00:03]} dxc6 {[%emt 0:00:22]} 7. Nc3 {[%emt 0:00:03]} Bd7 {[%emt 0:01:02]} 8. Qf4 {[%emt 0:00:36]} O-O-O {[%emt 0:00:51]} 9. Bd3 {[%emt 0:00:15]} Re8 {[%emt 0:00:19]} 10. Be3 {[%emt 0:00:46]} Bb4 {[%emt 0:00:30]} 11. O-O {[%emt 0:00:42]} Bxc3 {[%emt 0:00:40]} 12. bxc3 {[%emt 0:00:04]} Qxf4 {[%emt 0:00:02]} 13. Bxf4 {[%emt 0:00:03]} Ne7 {[%emt 0:00:03]} 14. Bg3 {[%emt 0:00:10]} h5 {[%emt 0:00:06]} 15. h4 {[%emt 0:00:14]} c5 {[%emt 0:00:56]} 16. f4 {[%emt 0:00:24]} f5 {[%emt 0:00:41]} 17. Rae1 {[%emt 0:00:38]} fxe4 {[%emt 0:00:20]} 18. Rxe4 {[%emt 0:00:34]} Nf5 {[%emt 0:00:01]} 19. Bf2 {[%emt 0:00:09]} b6 {[%emt 0:00:15]} 20. Rfe1 {[%emt 0:00:05]} g6 {[%emt 0:00:06]} 21. Re5 {[%emt 0:01:09]} Rxe5 {[%emt 0:00:07]} 22. fxe5 {[%emt 0:00:46]} Be6 {[%emt 0:00:06]} 23. a3 {[%emt 0:00:44]} Rd8 {[%emt 0:00:32]} 24. c4 {[%emt 0:02:39]} c6 {[%emt 0:00:56]} 25. Re4 {[%emt 0:00:11]} Kd7 {[%emt 0:00:34]} 26. g4 {[%emt 0:00:38]} hxg4 {[%emt 0:00:14]} 27. Rxg4 {[%emt 0:00:02]} Ne7 {[%emt 0:00:17]} 28. Rg5 {[%emt 0:00:31]} Rf8 {[%emt 0:00:25]} 29. Bxg6 {[%emt 0:01:31]} Nxg6 {[%emt 0:00:02]} 30. Rxg6 {[%emt 0:00:03]} Rg8 {[%emt 0:00:19]} 31. Rxg8 {[%emt 0:00:47]} Bxg8 {[%emt 0:00:01]} 32. h5 {[%emt 0:00:05]} Bxc4 {[%emt 0:00:02]} 33. h6 {[%emt 0:00:04]} Bg8 {[%emt 0:00:01]} 34. Bg3 {[%emt 0:01:00]} Ke6 {[%emt 0:00:10]} 35. Kf2 {[%emt 0:00:03]} b5 {[%emt 0:00:10]} 36. c3 {[%emt 0:00:12]} a5 {[%emt 0:00:02]} 37. Ke3 {[%emt 0:00:32]} Bh7 {[%emt 0:00:15]} 38. Kd2 {[%emt 0:00:10]} Kf5 {[%emt 0:00:06]} 39. Bf2 {[%emt 0:00:42]} Kxe5 {[%emt 0:01:13]} 40. Bxc5 {[%emt 0:00:04]} Kd5 {[%emt 0:00:03]} 41. Bb6 {[%emt 0:00:47]} a4 {[%emt 0:00:01]} 42. Kc1 {[%emt 0:00:07]} Kc4 {[%emt 0:00:18]} 43. Kb2 {[%emt 0:00:02]} Kd3 {[%emt 0:00:02]} 44. Bc5 {[%emt 0:00:12]} Bg8 {[%emt 0:00:04]} 45. Bd6 {[%emt 0:00:03]} Kc4 {[%emt 0:00:01]} 46. Bf8 {[%emt 0:00:06]} Bh7 {[%emt 0:00:02]} 47. Be7 {[%emt 0:00:03]} c5 {[%emt 0:00:19]} 48. Bf8 {[%emt 0:00:06]} Kd5 {[%emt 0:00:01]} 49. Be7 {[%emt 0:00:07]} Kc6 {[%emt 0:00:01]} 50. Bf8 {[%emt 0:00:03]} Kb6 {[%emt 0:00:05]} 51. Be7 {[%emt 0:00:07]} Kc6 {[%emt 0:00:01]} 52. Bf8 {[%emt 0:00:02]} 1-0

[Event "Kupreichik Memorial Open 2018"]
[Site "Minsk"]
[Date "2018.06.22"]
[Round "7"]
[White "Zhukovskij, Viktor"]
[Black "Badelka, Olga"]
[Result "0-1"]
[ECO "B30"]
[WhiteElo "1973"]
[BlackElo "2153"]
[Annotator "NA"]
[PlyCount "126"]
[EventDate "2018.06.21"]
[EventCountry "BLR"]
[SourceTitle "playchess.com"]
[Source "ChessBase"]
[SourceQuality "1"]
[TimeControl "900+10"]

1. e4 {[%emt 0:00:00]} c5 {[%emt 0:00:01]} 2. Nf3 {[%emt 0:00:00]} Nc6 {[%emt 0:00:02]} 3. Bb5 {[%emt 0:00:00]} e6 {[%emt 0:00:01]} 4. Bxc6 {[%emt 0:00:02]} bxc6 {[%emt 0:00:00]} 5. d3 {[%emt 0:00:08]} d5 {[%emt 0:00:02]} 6. Qe2 {[%emt 0:00:11]} Ne7 {[%emt 0:00:03]} 7. h4 {[%emt 0:00:51]} h5 {[%emt 0:00:08]} 8. b3 {[%emt 0:00:22]} Ng6 {[%emt 0:00:20]} 9. Bb2 {[%emt 0:01:12]} f6 {[%emt 0:00:32]} 10. e5 {[%emt 0:00:22]} Be7 {[%emt 0:00:24]} 11. Nbd2 {[%emt 0:00:23]} d4 {[%emt 0:01:24]} 12. Qe4 {[%emt 0:02:24]} f5 {[%emt 0:00:08]} 13. Qe2 {[%emt 0:01:07]} Nf4 {[%emt 0:02:23]} 14. Qf1 {[%emt 0:00:09]} a5 {[%emt 0:00:01]} 15. g3 {[%emt 0:00:16]} Nd5 {[%emt 0:00:03]} 16. a4 {[%emt 0:00:50]} Ba6 {[%emt 0:00:01]} 17. Nc4 {[%emt 0:00:26]} Bxc4 {[%emt 0:00:17]} 18. dxc4 {[%emt 0:00:15]} Nb4 {[%emt 0:00:37]} 19. O-O-O {[%emt 0:00:59]} Qb6 {[%emt 0:00:02]} 20. Ne1 {[%emt 0:01:33]} O-O-O {[%emt 0:01:49]} 21. Nd3 {[%emt 0:00:20]} g5 {[%emt 0:00:23]} 22. hxg5 {[%emt 0:00:21]} Bxg5+ {[%emt 0:00:02]} 23. f4 {[%emt 0:00:08]} Be7 {[%emt 0:00:02]} 24. Qf3 {[%emt 0:00:11]} h4 {[%emt 0:00:41]} 25. gxh4 {[%emt 0:02:33]} Bxh4 {[%emt 0:00:16]} 26. Nxb4 {[%emt 0:00:36]} cxb4 {[%emt 0:00:06]} 27. Rdg1 {[%emt 0:00:51]} d3 {[%emt 0:03:09]} 28. cxd3 {[%emt 0:00:48]} Bf2 {[%emt 0:00:04]} 29. Rf1 {[%emt 0:01:02]} Rxh1 {[%emt 0:00:48]} 30. Rxh1 {[%emt 0:00:02]} Qe3+ {[%emt 0:00:05]} 31. Qxe3 {[%emt 0:00:02]} Bxe3+ {[%emt 0:00:01]} 32. Kc2 {[%emt 0:00:05]} Bxf4 {[%emt 0:00:08]} 33. Rh4 {[%emt 0:01:02]} Be3 {[%emt 0:00:38]} 34. Rh3 {[%emt 0:00:16]} Bf4 {[%emt 0:01:05]} 35. d4 {[%emt 0:00:07]} Rg8 {[%emt 0:00:16]} 36. Rf3 {[%emt 0:00:26]} Rg2+ {[%emt 0:00:13]} 37. Kb1 {[%emt 0:00:01]} Bd2 {[%emt 0:00:59]} 38. Rd3 {[%emt 0:00:12]} Kd7 {[%emt 0:00:56]} 39. Bc1 {[%emt 0:00:26]} Bc3 {[%emt 0:00:13]} 40. c5 {[%emt 0:00:18]} Ke8 {[%emt 0:00:34]} 41. Rh3 {[%emt 0:00:19]} Bxd4 {[%emt 0:00:02]} 42. Rh8+ {[%emt 0:00:02]} Kf7 {[%emt 0:00:19]} 43. Rh7+ {[%emt 0:00:12]} Rg7 {[%emt 0:00:13]} 44. Rh8 {[%emt 0:00:08]} Bxe5 {[%emt 0:00:51]} 45. Rc8 {[%emt 0:00:02]} Rg1 {[%emt 0:00:04]} 46. Kc2 {[%emt 0:00:02]} f4 {[%emt 0:00:08]} 47. Rxc6 {[%emt 0:00:01]} f3 {[%emt 0:00:04]} 48. Be3 {[%emt 0:00:02]} f2 {[%emt 0:00:44]} 49. Bxf2 {[%emt 0:00:02]} Rg2 {[%emt 0:00:01]} 50. Kd3 {[%emt 0:00:21]} Rxf2 {[%emt 0:00:02]} 51. Ra6 {[%emt 0:00:01]} Kf6 {[%emt 0:01:12]} 52. Rxa5 {[%emt 0:00:04]} Rf4 {[%emt 0:00:28]} 53. c6 {[%emt 0:00:10]} Rd4+ {[%emt 0:00:03]} 54. Ke3 {[%emt 0:00:08]} Rd1 {[%emt 0:00:21]} 55. Ke4 {[%emt 0:00:07]} Re1+ {[%emt 0:00:08]} 56. Kd3 {[%emt 0:00:03]} Rc1 {[%emt 0:00:02]} 57. Ke4 {[%emt 0:00:03]} Bc7 {[%emt 0:00:25]} 58. Ra6 {[%emt 0:00:01]} Ke7 {[%emt 0:00:15]} 59. Kd4 {[%emt 0:00:17]} Kd6 {[%emt 0:00:02]} 60. Ra8 {[%emt 0:00:39]} Kxc6 {[%emt 0:00:14]} 61. Ra6+ {[%emt 0:00:07]} Bb6+ {[%emt 0:00:03]} 62. Kd3 {[%emt 0:00:23]} Kb7 {[%emt 0:00:02]} 63. Kd2 {[%emt 0:00:03]} Rc8 {[%emt 0:00:06]} 0-1

[Event "Kupreichik Memorial Open 2018"]
[Site "Minsk"]
[Date "2018.06.22"]
[Round "7"]
[White "Ilyuchyk, Yana"]
[Black "Kolosovskaya, Olga"]
[Result "1-0"]
[ECO "B40"]
[WhiteElo "1971"]
[BlackElo "1747"]
[Annotator "NA"]
[PlyCount "53"]
[EventDate "2018.06.21"]
[EventCountry "BLR"]
[SourceTitle "playchess.com"]
[Source "ChessBase"]
[SourceQuality "1"]
[TimeControl "900+10"]

1. e4 {[%emt 0:00:00]} c5 {[%emt 0:00:01]} 2. Nf3 {[%emt 0:00:00]} e6 {[%emt 0:00:01]} 3. d4 {[%emt 0:00:00]} cxd4 {[%emt 0:00:01]} 4. Nxd4 {[%emt 0:00:00]} Nf6 {[%emt 0:00:02]} 5. Bd3 {[%emt 0:00:17]} Nc6 {[%emt 0:00:01]} 6. Nb3 {[%emt 0:00:04]} d5 {[%emt 0:00:07]} 7. N1d2 {[%emt 0:00:50]} Be7 {[%emt 0:00:17]} 8. O-O {[%emt 0:00:05]} O-O {[%emt 0:00:02]} 9. Re1 {[%emt 0:00:50]} Nb4 {[%emt 0:02:00]} 10. e5 {[%emt 0:01:08]} Nd7 {[%emt 0:00:11]} 11. Nf3 {[%emt 0:00:53]} Nxd3 {[%emt 0:00:26]} 12. Qxd3 {[%emt 0:00:10]} b6 {[%emt 0:01:20]} 13. Nbd4 {[%emt 0:00:42]} Nc5 {[%emt 0:00:34]} 14. Qe3 {[%emt 0:00:05]} Bb7 {[%emt 0:00:16]} 15. Qf4 {[%emt 0:01:19]} Rc8 {[%emt 0:01:51]} 16. Qg4 {[%emt 0:00:36]} Kh8 {[%emt 0:00:11]} 17. Bg5 {[%emt 0:02:07]} Ne4 {[%emt 0:01:22]} 18. Bxe7 {[%emt 0:00:21]} Qxe7 {[%emt 0:00:02]} 19. c3 {[%emt 0:00:33]} Ba6 {[%emt 0:00:15]} 20. Re3 {[%emt 0:01:18]} f5 {[%emt 0:03:45]} 21. exf6 {[%emt 0:00:20]} Rxf6 {[%emt 0:00:02]} 22. Ne5 {[%emt 0:02:27]} Nxf2 {[%emt 0:00:58]} 23. Qh4 {[%emt 0:00:01]} Qd6 {[%emt 0:00:52]} 24. Qxf6 {[%emt 0:00:48]} gxf6 {[%emt 0:00:23]} 25. Nf7+ {[%emt 0:00:02]} Kg7 {[%emt 0:00:02]} 26. Nxd6 {[%emt 0:00:02]} Rd8 {[%emt 0:00:17]} 27. Nxe6+ 1-0

[Event "Kupreichik Memorial Open 2018"]
[Site "Minsk"]
[Date "2018.06.22"]
[Round "7"]
[White "Artsiomau, Stanislau"]
[Black "Stsepkina, Yauheniya"]
[Result "1-0"]
[ECO "B30"]
[WhiteElo "1954"]
[BlackElo "1591"]
[Annotator "NA"]
[PlyCount "65"]
[EventDate "2018.06.21"]
[EventCountry "BLR"]
[SourceTitle "playchess.com"]
[Source "ChessBase"]
[SourceQuality "1"]
[TimeControl "900+10"]

1. e4 {[%emt 0:00:00]} c5 {[%emt 0:00:00]} 2. Nf3 {[%emt 0:00:00]} Nc6 {[%emt 0:00:01]} 3. g3 {[%emt 0:00:00]} g6 {[%emt 0:00:04]} 4. Bg2 {[%emt 0:00:00]} Bg7 {[%emt 0:00:02]} 5. O-O {[%emt 0:00:00]} e6 {[%emt 0:00:03]} 6. Re1 {[%emt 0:00:00]} Nge7 {[%emt 0:00:01]} 7. d3 {[%emt 0:00:13]} O-O {[%emt 0:00:05]} 8. c3 {[%emt 0:00:05]} d5 {[%emt 0:00:04]} 9. e5 {[%emt 0:00:01]} d4 {[%emt 0:00:13]} 10. c4 {[%emt 0:00:04]} Qc7 {[%emt 0:00:21]} 11. Qe2 {[%emt 0:00:01]} h6 {[%emt 0:00:27]} 12. h4 {[%emt 0:00:05]} a6 {[%emt 0:00:19]} 13. Bf4 {[%emt 0:00:01]} b5 {[%emt 0:00:16]} 14. b3 {[%emt 0:00:01]} b4 {[%emt 0:00:37]} 15. Nh2 {[%emt 0:00:10]} Bb7 {[%emt 0:00:18]} 16. Ng4 {[%emt 0:00:01]} Kh7 {[%emt 0:00:50]} 17. Nf6+ {[%emt 0:00:02]} Kh8 {[%emt 0:00:05]} 18. Nd2 {[%emt 0:00:39]} Ng8 {[%emt 0:00:49]} 19. Nf3 {[%emt 0:01:25]} Qe7 {[%emt 0:00:29]} 20. Ne4 {[%emt 0:00:41]} Nd8 {[%emt 0:02:48]} 21. Nh2 {[%emt 0:00:41]} Bc6 {[%emt 0:01:47]} 22. Ng4 {[%emt 0:00:12]} Nb7 {[%emt 0:03:13]} 23. Ngf6 {[%emt 0:01:07]} Bxe4 {[%emt 0:00:47]} 24. Bxe4 {[%emt 0:00:39]} Nxf6 {[%emt 0:01:14]} 25. exf6 {[%emt 0:00:02]} Bxf6 {[%emt 0:00:06]} 26. Bxh6 {[%emt 0:00:39]} Bg7 {[%emt 0:00:08]} 27. Bg5 {[%emt 0:00:12]} f6 {[%emt 0:03:53]} 28. Bxg6 {[%emt 0:00:28]} fxg5 {[%emt 0:00:36]} 29. Qh5+ {[%emt 0:00:01]} Bh6 {[%emt 0:00:00]} 30. Qxh6+ {[%emt 0:00:02]} Kg8 {[%emt 0:00:05]} 31. Rxe6 {[%emt 0:00:03]} Qg7 {[%emt 0:00:19]} 32. Qxg5 {[%emt 0:00:44]} Rae8 {[%emt 0:00:18]} 33. Rxe8 {[%emt 0:00:16]} 1-0

[Event "Kupreichik Memorial Open 2018"]
[Site "Minsk"]
[Date "2018.06.22"]
[Round "7"]
[White "Laptii, Nazar"]
[Black "Nomin-Erdene, Davaademberel"]
[Result "1-0"]
[ECO "A04"]
[WhiteElo "1915"]
[BlackElo "2312"]
[Annotator "NA"]
[PlyCount "115"]
[EventDate "2018.06.21"]
[EventCountry "BLR"]
[SourceTitle "playchess.com"]
[Source "ChessBase"]
[SourceQuality "1"]
[TimeControl "900+10"]

1. Nf3 {[%emt 0:00:00]} f5 {[%emt 0:00:05]} 2. g3 {[%emt 0:00:00]} Nf6 {[%emt 0:00:01]} 3. Bg2 {[%emt 0:00:00]} g6 {[%emt 0:00:02]} 4. O-O {[%emt 0:00:00]} Bg7 {[%emt 0:00:00]} 5. d3 {[%emt 0:00:02]} O-O {[%emt 0:00:11]} 6. Nbd2 {[%emt 0:00:14]} d6 {[%emt 0:00:13]} 7. e4 {[%emt 0:00:19]} Nc6 {[%emt 0:01:00]} 8. Re1 {[%emt 0:00:18]} e5 {[%emt 0:01:05]} 9. exf5 {[%emt 0:00:06]} Bxf5 {[%emt 0:00:25]} 10. Nc4 {[%emt 0:00:55]} Qd7 {[%emt 0:00:19]} 11. Ne3 {[%emt 0:01:13]} Bh3 {[%emt 0:00:05]} 12. c4 {[%emt 0:00:34]} Bxg2 {[%emt 0:01:34]} 13. Kxg2 {[%emt 0:00:04]} h6 {[%emt 0:00:41]} 14. Rb1 {[%emt 0:00:18]} Nd4 {[%emt 0:01:47]} 15. Nxd4 {[%emt 0:03:00]} exd4 {[%emt 0:00:01]} 16. Nc2 {[%emt 0:00:02]} c5 {[%emt 0:02:07]} 17. b4 {[%emt 0:01:38]} g5 {[%emt 0:01:37]} 18. h3 {[%emt 0:01:07]} Rf7 {[%emt 0:00:39]} 19. Rb2 {[%emt 0:01:06]} Raf8 {[%emt 0:00:05]} 20. bxc5 {[%emt 0:00:39]} Ne4 {[%emt 0:02:05]} 21. f4 {[%emt 0:00:20]} Nxg3 {[%emt 0:00:40]} 22. Kxg3 {[%emt 0:01:35]} gxf4+ {[%emt 0:00:01]} 23. Kf2 {[%emt 0:00:23]} f3 {[%emt 0:00:03]} 24. Rh1 {[%emt 0:00:22]} Re7 {[%emt 0:01:45]} 25. Ne1 {[%emt 0:02:27]} Re2+ {[%emt 0:00:04]} 26. Kf1 {[%emt 0:00:01]} Qe7 {[%emt 0:00:42]} 27. Rh2 {[%emt 0:02:05]} Qe6 {[%emt 0:02:06]} 28. Rc2 {[%emt 0:00:38]} dxc5 {[%emt 0:00:13]} 29. Rb2 {[%emt 0:00:11]} Be5 {[%emt 0:00:07]} 30. Nxf3 {[%emt 0:00:10]} Rxf3+ {[%emt 0:00:07]} 31. Kxe2 {[%emt 0:00:07]} Rf7 {[%emt 0:00:16]} 32. Qg1+ {[%emt 0:00:14]} Kh7 {[%emt 0:00:09]} 33. Kd1 {[%emt 0:00:05]} Bxh2 {[%emt 0:00:12]} 34. Rxh2 {[%emt 0:00:02]} Qa6 {[%emt 0:00:07]} 35. Rc2 {[%emt 0:00:22]} Qc6 {[%emt 0:00:11]} 36. Qg2 {[%emt 0:00:10]} Qa4 {[%emt 0:00:11]} 37. Bd2 {[%emt 0:00:08]} Rg7 {[%emt 0:00:05]} 38. Qf2 {[%emt 0:00:05]} Qa3 {[%emt 0:00:11]} 39. Qf5+ {[%emt 0:00:06]} Kh8 {[%emt 0:00:02]} 40. Be1 {[%emt 0:00:20]} Rg1 {[%emt 0:00:22]} 41. Qf8+ {[%emt 0:00:08]} Kh7 {[%emt 0:00:02]} 42. Qe7+ {[%emt 0:00:07]} Kh8 {[%emt 0:00:07]} 43. Qe5+ {[%emt 0:00:10]} Kh7 {[%emt 0:00:04]} 44. Qe4+ {[%emt 0:00:07]} Kh8 {[%emt 0:00:01]} 45. Re2 {[%emt 0:00:19]} Qa4+ {[%emt 0:00:05]} 46. Rc2 {[%emt 0:00:05]} Qa3 {[%emt 0:00:05]} 47. Qe5+ {[%emt 0:00:02]} Kh7 {[%emt 0:00:01]} 48. Qf5+ {[%emt 0:00:08]} Kh8 {[%emt 0:00:03]} 49. Qf3 {[%emt 0:00:14]} a6 {[%emt 0:01:02]} 50. Qe2 {[%emt 0:00:17]} Kh7 {[%emt 0:00:07]} 51. Rb2 {[%emt 0:00:09]} Qa4+ {[%emt 0:00:09]} 52. Kc1 {[%emt 0:00:06]} b5 {[%emt 0:00:13]} 53. Qf2 {[%emt 0:00:17]} Rh1 {[%emt 0:00:12]} 54. Qf7+ {[%emt 0:00:06]} Kh8 {[%emt 0:00:00]} 55. Qe8+ {[%emt 0:00:07]} Kg7 {[%emt 0:00:06]} 56. Rg2+ {[%emt 0:00:05]} Kf6 {[%emt 0:00:02]} 57. Rg6+ {[%emt 0:00:14]} Kf5 {[%emt 0:00:02]} 58. Qe4# {[%emt 0:00:04]} 1-0

[Event "Kupreichik Memorial Open 2018"]
[Site "Minsk"]
[Date "2018.06.22"]
[Round "7"]
[White "Zeliantsova, Kseniya"]
[Black "Korniichuk, Oleksandra"]
[Result "1-0"]
[ECO "B40"]
[WhiteElo "1844"]
[BlackElo "1740"]
[Annotator "NA"]
[PlyCount "117"]
[EventDate "2018.06.21"]
[EventCountry "BLR"]
[SourceTitle "playchess.com"]
[Source "ChessBase"]
[SourceQuality "1"]
[TimeControl "900+10"]

1. e4 {[%emt 0:00:00]} c5 {[%emt 0:00:06]} 2. Nf3 {[%emt 0:00:00]} e6 {[%emt 0:00:04]} 3. b3 {[%emt 0:00:00]} d5 {[%emt 0:00:24]} 4. exd5 {[%emt 0:00:01]} exd5 {[%emt 0:00:05]} 5. Bb2 {[%emt 0:00:10]} Be6 {[%emt 0:00:31]} 6. Bb5+ {[%emt 0:00:13]} Nd7 {[%emt 0:00:12]} 7. O-O {[%emt 0:00:32]} Ngf6 {[%emt 0:00:24]} 8. Ng5 {[%emt 0:00:37]} Be7 {[%emt 0:00:32]} 9. Nxe6 {[%emt 0:00:09]} fxe6 {[%emt 0:00:05]} 10. Qe2 {[%emt 0:00:11]} a6 {[%emt 0:01:43]} 11. Bd3 {[%emt 0:01:56]} Qb6 {[%emt 0:00:39]} 12. Re1 {[%emt 0:00:02]} c4 {[%emt 0:03:36]} 13. Bf5 {[%emt 0:00:10]} Nf8 {[%emt 0:02:19]} 14. Bxe6 {[%emt 0:00:33]} Nxe6 {[%emt 0:00:14]} 15. Qxe6 {[%emt 0:00:03]} Qxe6 {[%emt 0:00:06]} 16. Rxe6 {[%emt 0:00:02]} Kf7 {[%emt 0:00:24]} 17. Re1 {[%emt 0:00:04]} b5 {[%emt 0:00:15]} 18. Nc3 {[%emt 0:01:09]} Rhd8 {[%emt 0:00:15]} 19. Ne2 {[%emt 0:00:21]} Rac8 {[%emt 0:00:06]} 20. Nd4 {[%emt 0:00:08]} Bd6 {[%emt 0:00:56]} 21. Re2 {[%emt 0:01:25]} Rd7 {[%emt 0:00:37]} 22. Rae1 {[%emt 0:00:08]} Ne4 {[%emt 0:00:15]} 23. f3 {[%emt 0:03:21]} Nxd2 {[%emt 0:00:45]} 24. c3 {[%emt 0:01:25]} Bf4 {[%emt 0:00:53]} 25. Bc1 {[%emt 0:00:10]} cxb3 {[%emt 0:00:08]} 26. Bxd2 {[%emt 0:00:04]} Bxd2 {[%emt 0:00:02]} 27. Rxd2 {[%emt 0:00:02]} bxa2 {[%emt 0:00:12]} 28. Rxa2 {[%emt 0:00:01]} Rxc3 {[%emt 0:00:04]} 29. Rxa6 {[%emt 0:00:06]} Rb7 {[%emt 0:01:03]} 30. Rb1 {[%emt 0:01:04]} b4 {[%emt 0:00:07]} 31. Ra4 {[%emt 0:00:26]} Rc4 {[%emt 0:00:06]} 32. Nb3 {[%emt 0:00:45]} h6 {[%emt 0:01:35]} 33. Na5 {[%emt 0:00:15]} Ra7 {[%emt 0:00:11]} 34. Nxc4 {[%emt 0:00:07]} Rxa4 35. Nb6 {[%emt 0:00:04]} Ra5 {[%emt 0:00:19]} 36. Rxb4 {[%emt 0:00:21]} Ra1+ {[%emt 0:00:04]} 37. Kf2 {[%emt 0:00:01]} Ra2+ {[%emt 0:00:02]} 38. Kg3 {[%emt 0:00:01]} Rd2 {[%emt 0:00:08]} 39. Na4 {[%emt 0:02:14]} g5 {[%emt 0:00:55]} 40. Rb6 {[%emt 0:00:28]} h5 {[%emt 0:00:15]} 41. Nc5 {[%emt 0:01:17]} Rc2 {[%emt 0:00:26]} 42. Nd3 {[%emt 0:00:16]} Rd2 {[%emt 0:00:19]} 43. Nb4 {[%emt 0:00:35]} Rd1 {[%emt 0:00:17]} 44. Rd6 {[%emt 0:00:15]} d4 {[%emt 0:00:07]} 45. Nc6 {[%emt 0:00:05]} d3 {[%emt 0:00:11]} 46. Ne5+ {[%emt 0:00:02]} Ke7 {[%emt 0:00:04]} 47. Rxd3 {[%emt 0:00:02]} Re1 {[%emt 0:00:03]} 48. f4 {[%emt 0:00:18]} h4+ {[%emt 0:00:25]} 49. Kg4 {[%emt 0:00:08]} gxf4 {[%emt 0:00:02]} 50. Ng6+ {[%emt 0:00:06]} Kf6 {[%emt 0:00:02]} 51. Nxf4 {[%emt 0:00:06]} Re4 {[%emt 0:00:06]} 52. Rd6+ {[%emt 0:00:02]} Kf7 {[%emt 0:00:04]} 53. Kf5 {[%emt 0:00:05]} Ra4 {[%emt 0:00:04]} 54. Rd7+ {[%emt 0:00:05]} Ke8 {[%emt 0:00:03]} 55. Rh7 {[%emt 0:00:04]} Ra5+ {[%emt 0:00:03]} 56. Kf6 {[%emt 0:00:05]} h3 {[%emt 0:00:22]} 57. Ne6 {[%emt 0:00:13]} Rf5+ {[%emt 0:00:48]} 58. Kxf5 {[%emt 0:00:03]} hxg2 {[%emt 0:00:02]} 59. Ke4 1-0

[Event "Kupreichik Memorial Open 2018"]
[Site "Minsk"]
[Date "2018.06.22"]
[Round "7"]
[White "Stroganova, Karina"]
[Black "Kulneva, Darya"]
[Result "1-0"]
[ECO "E67"]
[WhiteElo "1776"]
[BlackElo "1390"]
[Annotator "NA"]
[PlyCount "77"]
[EventDate "2018.06.21"]
[EventCountry "BLR"]
[SourceTitle "playchess.com"]
[Source "ChessBase"]
[SourceQuality "1"]
[TimeControl "900+10"]

1. d4 {[%emt 0:00:00]} Nf6 {[%emt 0:00:01]} 2. Nf3 {[%emt 0:00:00]} g6 {[%emt 0:00:03]} 3. c4 {[%emt 0:00:12]} Bg7 {[%emt 0:00:03]} 4. g3 {[%emt 0:00:05]} d6 {[%emt 0:00:02]} 5. Bg2 {[%emt 0:00:08]} O-O {[%emt 0:00:04]} 6. O-O {[%emt 0:00:06]} Nbd7 {[%emt 0:00:01]} 7. Nc3 {[%emt 0:00:17]} e5 {[%emt 0:00:15]} 8. Qc2 {[%emt 0:02:05]} Qe7 {[%emt 0:00:35]} 9. Rd1 {[%emt 0:02:29]} a5 {[%emt 0:00:46]} 10. b3 {[%emt 0:01:13]} c6 {[%emt 0:01:38]} 11. Ba3 {[%emt 0:00:14]} c5 {[%emt 0:01:28]} 12. dxe5 {[%emt 0:00:53]} dxe5 {[%emt 0:00:48]} 13. Nb5 {[%emt 0:00:23]} Ne8 {[%emt 0:01:39]} 14. Rac1 {[%emt 0:01:12]} Ra6 {[%emt 0:01:22]} 15. e4 {[%emt 0:03:33]} Nb8 {[%emt 0:00:38]} 16. Rd5 {[%emt 0:00:26]} b6 {[%emt 0:01:39]} 17. Rcd1 {[%emt 0:00:51]} Bd7 {[%emt 0:01:49]} 18. Bb2 {[%emt 0:00:22]} f6 {[%emt 0:01:06]} 19. Qd2 {[%emt 0:01:11]} Bxb5 {[%emt 0:00:34]} 20. cxb5 {[%emt 0:00:04]} Ra7 {[%emt 0:00:23]} 21. a4 {[%emt 0:00:21]} Rb7 {[%emt 0:00:50]} 22. Bh3 {[%emt 0:00:06]} Rf7 {[%emt 0:00:32]} 23. Qd3 {[%emt 0:00:08]} Bf8 {[%emt 0:00:16]} 24. Qc4 {[%emt 0:00:10]} Kh8 {[%emt 0:00:15]} 25. Rd8 {[%emt 0:00:36]} Nc7 {[%emt 0:00:56]} 26. Bc8 {[%emt 0:01:07]} Ra7 {[%emt 0:00:16]} 27. Nxe5 {[%emt 0:00:49]} fxe5 {[%emt 0:00:49]} 28. Bxe5+ {[%emt 0:00:03]} Kg8 {[%emt 0:00:19]} 29. Bxc7 {[%emt 0:00:21]} Rxc7 {[%emt 0:00:28]} 30. Be6 {[%emt 0:00:05]} Rb7 {[%emt 0:00:14]} 31. Bxf7+ {[%emt 0:00:24]} Qxf7 {[%emt 0:00:02]} 32. Qc3 {[%emt 0:00:13]} h6 {[%emt 0:00:21]} 33. R1d3 {[%emt 0:00:01]} Kh7 {[%emt 0:00:02]} 34. Rf3 {[%emt 0:00:02]} Qe7 {[%emt 0:00:07]} 35. Rdxf8 {[%emt 0:00:06]} Qg7 {[%emt 0:00:09]} 36. Qc4 {[%emt 0:00:09]} Nd7 {[%emt 0:00:11]} 37. R8f7 {[%emt 0:00:04]} Qxf7 {[%emt 0:00:05]} 38. Rxf7+ {[%emt 0:00:07]} Kh8 {[%emt 0:00:03]} 39. Qd5 {[%emt 0:00:04]} 1-0